bitfinex-derivatives/quotes_SOLF0:USTF0_20260207
["timestamp","ask_amount","ask_price","bid_price","bid_amount"]
[1770455878063,31.76416634,85.389,85.34,4.9293094]
[1770455878262,31.76416634,85.389,85.341,31.31917037]
[1770455879665,31.76416634,85.389,85.35,4.9293094]
[1770455879869,31.76416634,85.389,85.341,31.31917037]
[1770455879870,31.76416634,85.386,85.341,31.31917037]
[1770455880070,31.76416634,85.379,85.33,4.9293094]
[1770455880366,31.76416634,85.366,85.317,31.31917037]
[1770455880570,31.76416634,85.381,85.33,4.9293094]
[1770455880763,36.69347574,85.39,85.34,4.9293094]
[1770455881363,31.76416634,85.385,85.35,4.9293094]
[1770455881664,31.76416634,85.385,85.36,4.9293094]
[1770455881866,31.76416634,85.385,85.35,4.9293094]
[1770455882665,31.76416634,85.4,85.36,4.9293094]
[1770455884165,31.76416634,85.4,85.37,4.9293094]
[1770455884370,31.76416634,85.412,85.37,4.9293094]
[1770455884570,31.76416634,85.427,85.38,4.9293094]
[1770455885169,31.76416634,85.427,85.39,4.9293094]
[1770455885369,31.76416634,85.409,85.367,31.31917037]
[1770455885871,31.76416634,85.423,85.38,4.9293094]
[1770455886470,31.20979218,85.418,85.37,36.24847977]
[1770455886975,31.20979218,85.418,85.38,4.9293094]
[1770455888072,31.20979218,85.418,85.38,35.80873708]
[1770455893674,32.26363999,85.415,85.37,4.9293094]
[1770455893878,32.26363999,85.409,85.367,31.35913567]
[1770455894266,32.26363999,85.406,85.367,31.35913567]
[1770455895678,10.5443,85.404,85.367,31.35913567]
[1770455896275,10.5461,85.389,85.352,31.35913567]
[1770455896479,32.26363999,85.388,85.34,4.9293094]
[1770455896777,37.19294939,85.38,85.33,4.9293094]
[1770455896973,10.5489,85.367,85.326,31.35913567]
[1770455897570,32.26363999,85.366,85.312,10.5555]
[1770455897773,42.81363999,85.357,85.312,31.35913567]
[1770455898480,42.81363999,85.357,85.32,4.9293094]
[1770455899377,42.81363999,85.357,85.312,31.35913567]
[1770455901082,10.5485,85.369,85.32,14.71428192]
[1770455901383,10.5485,85.369,85.321,31.35913567]
[1770455902384,10.5473,85.379,85.324,31.35913567]
[1770455903782,10.5473,85.379,85.328,31.35913567]
[1770455904494,32.26363999,85.387,85.328,31.35913567]
[1770455904684,32.26363999,85.387,85.341,31.35913567]
[1770455905081,10.5462,85.388,85.341,31.35913567]
[1770455905881,32.26363999,85.399,85.346,31.35913567]
[1770455906682,10.5454,85.395,85.346,31.35913567]
[1770455906882,32.26363999,85.412,85.346,31.35913567]
[1770455907191,32.26363999,85.424,85.361,31.35913567]
[1770455907579,10.5423,85.42,85.366,31.35913567]
[1770455908688,10.5423,85.42,85.371,41.90743567]
[1770455908887,10.5423,85.42,85.372,31.35913567]
[1770455910090,32.26363999,85.419,85.372,31.35913567]
[1770455911294,32.26363999,85.453,85.401,31.35913567]
[1770455912692,32.26363999,85.452,85.401,31.35913567]
[1770455913695,32.26363999,85.452,85.404,31.35913567]
[1770455914494,32.26363999,85.469,85.406,31.35913567]
[1770455914690,32.26363999,85.469,85.4,14.71428192]
[1770455914691,32.26363999,85.469,85.421,31.35913567]
[1770455917194,14.67522965,85.5,85.4,14.67522965]
[1770455917195,31.5073087,85.462,85.4,14.67522965]
[1770455917996,31.5073087,85.462,85.395,32.48768469]
[1770455918790,42.0459087,85.45,85.395,32.48768469]
[1770455919192,31.5073087,85.449,85.395,32.48768469]
[1770455919991,31.5073087,85.436,85.38,14.67522965]
[1770455920198,31.5073087,85.436,85.367,32.48768469]
[1770455921396,31.5073087,85.429,85.38,4.93690942]
[1770455921799,31.5073087,85.425,85.38,4.93690942]
[1770455922800,10.5424,85.419,85.38,4.93690942]
[1770455923398,42.0497087,85.419,85.368,32.48768469]
[1770455923607,10.5434,85.411,85.368,32.48768469]
[1770455923800,31.5073087,85.411,85.368,32.48768469]
[1770455924816,10.5444,85.403,85.368,32.48768469]
[1770455926507,31.5073087,85.392,85.34,32.48768469]
[1770455927511,10.5469,85.383,85.34,32.48768469]
[1770455928416,31.5073087,85.392,85.321,32.48768469]
[1770455928616,31.5073087,85.389,85.321,32.48768469]
[1770455929520,14.69387506,85.39,85.321,32.48768469]
[1770455929521,42.0545087,85.381,85.321,32.48768469]
[1770455930715,31.5073087,85.381,85.324,32.48768469]
[1770455931717,31.5073087,85.381,85.332,32.48768469]
[1770455935524,31.5073087,85.393,85.34,14.69387506]
[1770455935717,31.5073087,85.409,85.361,32.48768469]
[1770455935915,31.5073087,85.449,85.361,32.48768469]
[1770455936420,21.0749,85.459,85.361,32.48768469]
[1770455936421,31.5073087,85.419,85.362,32.48768469]
[1770455937117,31.5073087,85.406,85.348,32.48768469]
[1770455937817,10.5467,85.384,85.348,32.48768469]
[1770455940424,31.5073087,85.389,85.348,32.48768469]
[1770455941512,31.5073087,85.401,85.348,32.48768469]
[1770455942020,31.5073087,85.388,85.348,32.48768469]
[1770455942917,42.0521087,85.4,85.348,32.48768469]
[1770455943321,31.5073087,85.399,85.348,32.48768469]
[1770455943722,31.5073087,85.399,85.35,32.48768469]
[1770455944120,42.0523087,85.398,85.35,32.48768469]
[1770455945123,31.5073087,85.397,85.35,32.48768469]
[1770455945325,31.5073087,85.397,85.302,37.1287121]
[1770455945326,31.5073087,85.395,85.331,32.48768469]
[1770455946330,10.5468,85.384,85.334,30.30982948]
[1770455947532,33.0169602,85.393,85.338,30.30982948]
[1770455947928,33.0169602,85.393,85.35,30.30982948]
[1770455948132,33.0169602,85.429,85.351,30.30982948]
[1770455948730,33.0169602,85.429,85.378,30.30982948]
[1770455949520,33.0169602,85.429,85.39,4.93519348]
[1770455949831,30.12334431,85.443,85.41,4.93519348]
[1770455950029,30.12334431,85.477,85.421,30.79180247]
[1770455950228,30.12334431,85.471,85.43,4.93519348]
[1770455950431,30.12334431,85.469,85.421,30.79180247]
[1770455950932,30.12334431,85.468,85.421,30.79180247]
[1770455955932,30.12334431,85.481,85.431,30.79180247]
[1770455956732,30.12334431,85.481,85.436,30.79180247]
[1770455957535,30.12334431,85.48,85.423,30.79180247]
[1770455958831,30.12334431,85.477,85.423,30.79180247]
[1770455959538,30.12334431,85.475,85.423,30.79180247]
[1770455961544,30.12334431,85.475,85.391,30.79180247]
[1770455961735,14.67720488,85.5,85.391,30.79180247]
[1770455961736,14.67720488,85.45,85.391,30.79180247]
[1770455961937,30.12334431,85.448,85.391,30.79180247]
[1770455962536,30.12334431,85.448,85.395,30.79180247]
[1770455962743,30.12334431,85.459,85.395,30.79180247]
[1770455963838,30.12334431,85.459,85.39,14.67720488]
[1770455963839,30.12334431,85.457,85.402,30.79180247]
[1770455964432,30.12334431,85.444,85.387,30.79180247]
[1770455965347,30.12334431,85.444,85.392,30.79180247]
[1770455966743,30.12334431,85.444,85.35,76.67720488]
[1770455966744,30.12334431,85.434,85.381,30.79180247]
[1770455967845,30.12334431,85.422,85.381,30.79180247]
[1770455968443,30.12334431,85.436,85.383,30.79180247]
[1770455969544,10.5406,85.434,85.386,30.79180247]
[1770455971747,10.5406,85.434,85.36,14.67720488]
[1770455971748,30.12334431,85.424,85.372,30.79180247]
[1770455972739,10.5429,85.415,85.372,30.79180247]
[1770455976942,10.5438,85.408,85.372,30.79180247]
[1770455977753,30.75446235,85.399,85.359,30.26957556]
[1770455978255,10.5453,85.395,85.359,30.26957556]
[1770455984548,30.75446235,85.412,85.359,30.26957556]
[1770455985755,30.75446235,85.412,85.35,14.69550477]
[1770455985756,30.75446235,85.412,85.365,30.26957556]
[1770455986561,10.5413,85.428,85.371,30.26957556]
[1770455986754,30.75446235,85.429,85.371,30.26957556]
[1770455987450,41.29576235,85.428,85.371,30.26957556]
[1770455987650,30.75446235,85.427,85.371,30.26957556]
[1770455988964,30.75446235,85.421,85.374,40.81747556]
[1770455989261,30.75446235,85.421,85.375,30.26957556]
[1770455989663,30.75446235,85.421,85.379,30.26957556]
[1770455992760,30.75446235,85.421,85.38,30.26957556]
[1770455993864,30.75446235,85.421,85.385,30.26957556]
[1770455994064,10.5409,85.431,85.385,30.26957556]
[1770455994565,30.75446235,85.431,85.386,10.5464]
[1770455994761,30.75446235,85.431,85.386,40.81597556]
[1770455994961,30.75446235,85.431,85.387,30.26957556]
[1770455996768,30.75446235,85.431,85.39,30.26957556]
[1770455997358,30.75446235,85.431,85.4,4.93451644]
[1770455998565,30.75446235,85.431,85.39,4.93451644]
[1770455998865,21.0707,85.477,85.382,30.26957556]
[1770455998866,30.75446235,85.429,85.382,30.26957556]
[1770455999258,30.75446235,85.429,85.39,4.93451644]
[1770455999460,30.75446235,85.429,85.39,35.204092]
[1770455999866,10.5413,85.428,85.39,35.204092]
[1770456000062,10.5413,85.428,85.331,56.79256351]
[1770456000063,30.75446235,85.419,85.376,30.26957556]
[1770456000865,30.75446235,85.404,85.362,30.26957556]
[1770456001973,35.68897879,85.4,85.346,30.26957556]
[1770456002573,30.75446235,85.387,85.346,30.26957556]
[1770456003769,30.75446235,85.409,85.361,30.26957556]
[1770456004166,30.75446235,85.399,85.35,35.204092]
[1770456004768,30.75446235,85.399,85.36,4.93451644]
[1770456005867,30.75446235,85.399,85.37,4.93451644]
[1770456006470,30.75446235,85.399,85.36,4.93451644]
[1770456007178,30.75446235,85.399,85.354,29.78082321]
[1770456008078,32.20311797,85.396,85.342,29.78082321]
[1770456008274,32.20311797,85.396,85.343,10.5517]
[1770456008479,32.20311797,85.396,85.35,34.71533965]
[1770456009773,32.28724074,85.393,85.35,34.71533965]
[1770456011579,14.49115462,85.434,85.35,34.71533965]
[1770456011580,37.22175718,85.39,85.35,29.78082321]
[1770456015176,32.28724074,85.379,85.325,10.79484894]
[1770456015377,32.28724074,85.379,85.32,36.39477466]
[1770456015779,32.28724074,85.369,85.32,36.39477466]
[1770456016571,10.5488,85.367,85.32,36.39477466]
[1770456016775,42.83604074,85.367,85.33,4.93451644]
[1770456017379,32.28724074,85.366,85.33,4.93451644]
[1770456017678,32.28724074,85.363,85.32,36.39477466]
[1770456017883,32.28724074,85.359,85.32,31.46025822]
[1770456018083,10.93087075,85.396,85.307,31.46025822]
[1770456018084,32.28724074,85.349,85.307,31.46025822]
[1770456018875,32.28724074,85.349,85.31,4.93451644]
[1770456019681,10.5514,85.346,85.31,4.93451644]
[1770456021786,32.28724074,85.364,85.33,4.93451644]
[1770456021988,32.28724074,85.349,85.305,31.46025822]
[1770456022389,32.28724074,85.349,85.31,4.93451644]
[1770456022582,32.28724074,85.349,85.305,31.46025822]
[1770456023787,37.22175718,85.34,85.305,31.46025822]
[1770456024091,32.28724074,85.329,85.28,4.93451644]
[1770456025287,32.28724074,85.327,85.28,4.93451644]
[1770456025888,32.28724074,85.327,85.29,4.93451644]
[1770456027390,32.28724074,85.327,85.242,2.03998488]
[1770456027391,32.28724074,85.327,85.3,4.93451644]
[1770456028297,32.28724074,85.345,85.3,36.39477466]
[1770456029998,32.28724074,85.358,85.32,4.93451644]
[1770456030604,32.28724074,85.357,85.311,31.46025822]
[1770456031208,32.28724074,85.357,85.32,4.93451644]
[1770456032108,32.28724074,85.357,85.311,31.46025822]
[1770456032608,42.83754074,85.355,85.311,31.46025822]
[1770456033704,32.28724074,85.354,85.311,31.46025822]
[1770456034401,32.28724074,85.352,85.311,31.46025822]
[1770456034604,32.28724074,85.329,85.286,31.46025822]
[1770456035303,10.5536,85.328,85.286,31.46025822]
[1770456035503,10.5536,85.328,85.29,4.93451644]
[1770456035899,32.28724074,85.329,85.29,4.93451644]
[1770456036411,32.28724074,85.329,85.29,36.42840234]
[1770456037509,32.28724074,85.329,85.29,36.44044768]
[1770456040208,32.28724074,85.329,85.29,31.4938859]
[1770456040397,32.28724074,85.329,85.29,36.44044768]
[1770456041615,10.5524,85.338,85.3,36.44044768]
[1770456041809,31.45093637,85.359,85.321,31.4938859]
[1770456042005,31.45093637,85.359,85.33,4.94656178]
[1770456042409,31.45093637,85.371,85.33,4.94656178]
[1770456044704,31.45093637,85.369,85.32,4.94656178]
[1770456044912,31.45093637,85.369,85.33,4.94656178]
[1770456045106,31.45093637,85.389,85.34,4.94656178]
[1770456046611,31.45093637,85.388,85.35,4.94656178]
[1770456047014,31.45093637,85.401,85.36,4.94656178]
[1770456047615,36.39749815,85.4,85.353,31.4938859]
[1770456047814,36.39749815,85.39,85.353,31.4938859]
[1770456048114,31.45093637,85.39,85.353,31.4938859]
[1770456048417,31.45093637,85.39,85.35,4.94656178]
[1770456051314,31.45093637,85.379,85.34,31.4938859]
[1770456054712,4.94656178,85.38,85.34,31.4938859]
[1770456054920,31.45093637,85.408,85.36,4.94656178]
[1770456057619,31.45093637,85.408,85.35,10.5508]
[1770456057817,10.93087075,85.432,85.325,10.79484894]
[1770456057818,31.45093637,85.389,85.342,31.4938859]
[1770456058014,36.39749815,85.38,85.342,31.4938859]
[1770456058920,31.45093637,85.38,85.342,31.4938859]
[1770456062023,41.99723637,85.388,85.342,31.4938859]
[1770456062415,31.45093637,85.387,85.342,31.4938859]
[1770456062623,31.45093637,85.405,85.361,31.4938859]
[1770456063623,31.45093637,85.401,85.361,31.4938859]
[1770456063923,31.45093637,85.399,85.35,4.94656178]
[1770456064724,31.45093637,85.395,85.35,4.94656178]
[1770456065624,31.45093637,85.395,85.35,36.44044768]
[1770456065814,31.45093637,85.395,85.36,4.94656178]
[1770456066823,29.65460009,85.408,85.364,29.98324883]
[1770456067027,29.65460009,85.408,85.304,21.1131]
[1770456067028,29.65460009,85.423,85.38,4.94656178]
[1770456067727,29.65460009,85.423,85.39,4.94656178]
[1770456067930,29.65460009,85.423,85.38,34.92981061]
[1770456068626,29.65460009,85.423,85.39,4.94656178]
[1770456069228,29.65460009,85.438,85.4,4.94656178]
[1770456070028,29.65460009,85.438,85.39,34.92981061]
[1770456070825,4.94656178,85.43,85.38,4.94656178]
[1770456071133,29.11950248,85.419,85.38,4.94656178]
[1770456072132,29.11950248,85.431,85.39,4.94656178]
[1770456073627,29.11950248,85.431,85.4,4.94656178]
[1770456073924,29.11950248,85.431,85.39,4.94656178]
[1770456078734,29.11950248,85.419,85.371,40.93813778]
[1770456078941,29.11950248,85.419,85.371,30.38983778]
[1770456081641,29.11950248,85.419,85.372,10.5482]
[1770456082229,29.11950248,85.419,85.39,4.94656178]
[1770456082741,4.94656178,85.44,85.39,35.33639956]
[1770456082742,29.11950248,85.436,85.39,35.33639956]
[1770456083135,10.5404,85.435,85.39,35.33639956]
[1770456083443,29.11950248,85.434,85.39,35.33639956]
[1770456083942,10.539,85.446,85.41,4.94656178]
[1770456084133,39.65850248,85.446,85.41,4.94656178]
[1770456084740,29.11950248,85.445,85.41,4.94656178]
[1770456086938,29.11950248,85.445,85.401,30.38983778]
[1770456087836,29.11950248,85.435,85.387,30.38983778]
[1770456088043,29.11950248,85.441,85.4,35.33639956]
[1770456088641,29.11950248,85.441,85.401,10.5445]
[1770456090440,29.11950248,85.461,85.42,4.94656178]
[1770456090832,4.94656178,85.44,85.39,30.38983778]
[1770456091035,29.11950248,85.439,85.39,35.33639956]
[1770456091235,29.11950248,85.439,85.393,10.5454]
[1770456093942,29.11950248,85.439,85.393,40.93523778]
[1770456097143,29.11950248,85.439,85.394,29.89873282]
[1770456097545,29.11950248,85.439,85.4,4.93452098]
[1770456102352,30.83349559,85.437,85.4,4.93452098]
[1770456105543,30.83349559,85.437,85.394,29.89873282]
[1770456107453,41.37399559,85.434,85.394,29.89873282]
[1770456107752,30.83349559,85.433,85.394,29.89873282]
[1770456108144,30.83349559,85.433,85.39,4.93452098]
[1770456108346,30.83349559,85.429,85.371,29.89873282]
[1770456108842,4.93452098,85.45,85.401,29.89873282]
[1770456109048,30.83349559,85.453,85.41,34.8332538]
[1770456113848,30.83349559,85.453,85.42,4.93452098]
[1770456115854,30.83349559,85.465,85.43,4.93452098]
[1770456119956,30.83349559,85.476,85.44,4.93452098]
[1770456121259,30.83349559,85.473,85.43,34.8332538]
[1770456121464,10.89036524,85.49,85.43,34.8332538]
[1770456121465,30.83349559,85.469,85.43,29.89873282]
[1770456121666,30.83349559,85.469,85.43,34.8332538]
[1770456123064,30.83349559,85.481,85.44,34.8332538]
[1770456124166,30.83349559,85.459,85.41,4.93452098]
[1770456124464,4.93452098,85.44,85.391,29.89873282]
[1770456124666,30.83349559,85.439,85.391,29.89873282]
[1770456125263,30.83349559,85.438,85.4,4.93452098]
[1770456125967,30.83349559,85.438,85.401,29.01310918]
[1770456126168,4.93452098,85.45,85.411,29.01310918]
[1770456126169,29.33130246,85.45,85.411,29.01310918]
[1770456128564,34.26582344,85.45,85.401,29.01310918]
[1770456128766,34.26582344,85.45,85.41,4.93452098]
[1770456129072,29.33130246,85.45,85.41,4.93452098]
[1770456129673,29.33130246,85.45,85.414,29.55767311]
[1770456129874,29.33130246,85.45,85.42,4.93452098]
[1770456132574,27.54784973,85.469,85.43,4.93452098]
[1770456133474,27.54784973,85.469,85.423,29.55767311]
[1770456133776,27.54784973,85.469,85.424,10.5417]
[1770456135170,27.54784973,85.469,85.43,4.93452098]
[1770456140981,27.54784973,85.495,85.441,29.55767311]
[1770456141181,27.54784973,85.479,85.43,4.93452098]
[1770456141376,27.54784973,85.479,85.429,29.55767311]
[1770456141881,27.54784973,85.469,85.416,29.55767311]
[1770456142278,27.54784973,85.459,85.416,29.55767311]
[1770456143075,27.54784973,85.459,85.43,4.93452098]
[1770456143779,27.54784973,85.479,85.434,29.55767311]
[1770456143984,27.54784973,85.479,85.44,4.93452098]
[1770456144186,27.54784973,85.479,85.44,34.49219409]
[1770456144386,27.54784973,85.479,85.443,40.09707311]
[1770456144581,27.54784973,85.479,85.45,4.93452098]
[1770456150580,27.54784973,85.499,85.46,4.93452098]
[1770456150786,27.54784973,85.496,85.46,4.93452098]
[1770456150981,27.54784973,85.496,85.453,29.55767311]
[1770456156384,27.54784973,85.496,85.456,27.9470647]
[1770456156591,27.54784973,85.496,85.46,4.93452098]
[1770456156791,27.54784973,85.496,85.456,27.9470647]
[1770456157192,27.54784973,85.496,85.46,4.93452098]
[1770456158689,27.54784973,85.496,85.47,4.93452098]
[1770456159090,27.25919257,85.507,85.48,4.93452098]
[1770456159592,27.25919257,85.507,85.47,32.87258247]
[1770456161093,27.25919257,85.518,85.48,4.92551777]
[1770456161593,27.25919257,85.518,85.47,32.87258247]
[1770456161794,27.25919257,85.518,85.48,4.92551777]
[1770456168000,27.25919257,85.518,85.48,32.87258247]
[1770456168896,37.78949257,85.518,85.48,4.92551777]
[1770456169093,27.25919257,85.509,85.46,4.92551777]
[1770456169900,27.25919257,85.508,85.47,4.92551777]
[1770456170290,27.25919257,85.53,85.49,32.87258247]
[1770456170596,27.25919257,85.53,85.5,4.92551777]
[1770456173599,27.25919257,85.53,85.49,32.87258247]
[1770456179509,27.25919257,85.54,85.5,32.87258247]
[1770456182906,32.18471034,85.54,85.485,27.9470647]
[1770456183209,27.25919257,85.529,85.47,32.87258247]
[1770456183809,27.25919257,85.519,85.47,32.87258247]
[1770456184007,27.25919257,85.509,85.46,32.87258247]
[1770456184510,14.51813674,85.56,85.45,4.92551777]
[1770456184511,27.25919257,85.499,85.45,4.92551777]
[1770456184711,27.25919257,85.499,85.45,43.41108247]
[1770456184913,27.25919257,85.499,85.451,27.9470647]
[1770456185110,27.25919257,85.499,85.46,4.92551777]
[1770456187514,27.02202674,85.497,85.451,27.9470647]
[1770456187706,27.02202674,85.489,85.445,309.39768232]
[1770456188308,27.02202674,85.479,85.445,309.39768232]
[1770456188512,27.02202674,85.479,85.439,28.34450063]
[1770456190421,27.02202674,85.479,85.44,4.92551777]
[1770456192917,27.02202674,85.479,85.399,14.41788003]
[1770456192918,27.80107946,85.476,85.43,4.92551777]
[1770456193116,27.80107946,85.469,85.426,28.32520476]
[1770456193527,27.80107946,85.467,85.408,10.5437]
[1770456193714,21.0608,85.517,85.4,10.76581177]
[1770456193715,27.80107946,85.449,85.405,28.32520476]
[1770456193916,27.80107946,85.449,85.42,4.92551777]
[1770456194315,27.80107946,85.469,85.43,4.92551777]
[1770456195013,27.80107946,85.469,85.42,33.25072253]
[1770456196716,27.80107946,85.469,85.42,28.32520476]
[1770456196919,27.80107946,85.469,85.43,4.92551777]
[1770456206533,27.80107946,85.469,85.43,33.25072253]
[1770456208629,27.80107946,85.482,85.44,33.25072253]
[1770456208835,27.80107946,85.482,85.45,4.92551777]
[1770456210033,27.80107946,85.482,85.443,28.32520476]
[1770456211432,27.80107946,85.479,85.433,28.32520476]
[1770456212937,27.80107946,85.478,85.433,28.32520476]
[1770456213838,27.80107946,85.475,85.433,28.32520476]
[1770456214738,27.80107946,85.473,85.433,28.32520476]
[1770456215334,27.80107946,85.469,85.421,10.5421]
[1770456215636,27.80107946,85.469,85.422,28.32520476]
[1770456217443,27.80107946,85.469,85.43,4.92551777]
[1770456219438,27.80107946,85.469,85.43,4.93119456]
[1770456221444,27.80107946,85.469,85.44,4.93119456]
[1770456221941,29.21723365,85.504,85.461,27.25411461]
[1770456222146,29.21723365,85.504,85.47,4.93119456]
[1770456227645,29.21723365,85.504,85.48,4.93119456]
[1770456227841,29.21723365,85.519,85.48,4.93119456]
[1770456229538,10.5304,85.517,85.48,4.93119456]
[1770456229744,10.5304,85.517,85.435,14.42809923]
[1770456229745,29.21723365,85.509,85.46,4.93119456]
[1770456230836,29.21723365,85.507,85.46,4.93119456]
[1770456231244,29.21723365,85.499,85.456,27.25411461]
[1770456232744,29.21723365,85.496,85.456,27.25411461]
[1770456238047,29.21723365,85.494,85.45,4.93119456]
[1770456238253,29.21723365,85.494,85.45,32.18530917]
[1770456239749,4.93119456,85.48,85.437,27.25411461]
[1770456239951,29.21723365,85.479,85.437,27.25411461]
[1770456240348,4.93119456,85.47,85.437,27.25411461]
[1770456240650,29.21723365,85.492,85.441,27.25411461]
[1770456240853,29.21723365,85.489,85.46,4.93119456]
[1770456243250,29.21723365,85.507,85.461,27.25411461]
[1770456243451,203.47753657,86.065,85.461,27.25411461]
[1770456243452,29.21723365,85.54,85.5,4.93119456]
[1770456243653,29.21723365,85.54,85.497,27.25411461]
[1770456243854,29.21723365,85.54,85.51,4.93119456]
[1770456244043,29.21723365,85.555,85.52,4.93119456]
[1770456245256,29.21723365,85.569,85.54,4.93119456]
[1770456245956,29.21723365,85.569,85.55,4.93119456]
[1770456249246,27.79515255,85.594,85.55,4.93119456]
[1770456249847,27.79515255,85.592,85.55,4.93119456]
[1770456250059,10.521,85.593,85.526,10.5291]
[1770456250060,27.79515255,85.589,85.54,4.93119456]
[1770456250361,27.79515255,85.589,85.55,4.93119456]
[1770456252064,27.79515255,85.589,85.56,4.93119456]
[1770456252650,27.79515255,85.615,85.58,4.93119456]
[1770456254856,27.79515255,85.615,85.564,29.12894703]
[1770456254857,27.79515255,85.609,85.564,29.12894703]
[1770456255254,10.5197,85.603,85.56,4.93119456]
[1770456255564,27.79515255,85.579,85.536,29.12894703]
[1770456255761,27.79515255,85.579,85.55,4.93119456]
[1770456257765,27.79515255,85.579,85.541,29.12894703]
[1770456258263,27.79515255,85.579,85.55,4.93119456]
[1770456260158,27.79515255,85.579,85.541,29.12894703]
[1770456260564,35.1,85.647,85.56,4.93119456]
[1770456260565,27.79515255,85.592,85.56,4.93119456]
[1770456261978,27.79515255,85.619,85.57,4.93119456]
[1770456263077,27.79515255,85.619,85.561,29.12894703]
[1770456263078,27.79515255,85.619,85.58,4.93119456]
[1770456263278,32.72634711,85.6,85.551,29.12894703]
[1770456263583,27.79515255,85.615,85.58,4.93119456]
[1770456264080,27.79515255,85.629,85.59,4.93119456]
[1770456266568,27.79515255,85.629,85.6,4.93119456]
[1770456266968,27.79515255,85.629,85.59,4.93119456]
[1770456271283,27.79515255,85.629,85.59,34.06014159]
[1770456272280,27.79515255,85.629,85.58,4.93119456]
[1770456273485,27.79515255,85.629,85.58,34.06014159]
[1770456273781,27.79515255,85.609,85.56,4.93119456]
[1770456274384,4.93119456,85.59,85.544,29.12894703]
[1770456274585,32.72634711,85.59,85.544,29.12894703]
[1770456275682,29.33680585,85.587,85.544,29.12894703]
[1770456275879,29.33680585,85.579,85.53,32.01380527]
[1770456276385,29.33680585,85.579,85.541,27.08261071]
[1770456277585,4.93119456,85.59,85.55,4.93119456]
[1770456277586,10.5214,85.59,85.55,4.93119456]
[1770456277785,29.33680585,85.589,85.55,4.93119456]
[1770456278183,10.5217,85.587,85.55,4.93119456]
[1770456278586,29.33680585,85.589,85.55,4.93119456]
[1770456279888,29.33680585,85.605,85.57,4.93119456]
[1770456281284,29.33680585,85.605,85.561,27.08261071]
[1770456281594,29.33680585,85.605,85.57,4.91468443]
[1770456285088,29.33680585,85.605,85.567,10.524]
[1770456285288,29.33680585,85.605,85.561,27.08261071]
[1770456285489,29.33680585,85.605,85.57,4.91468443]
[1770456288294,29.33680585,85.646,85.6,4.91468443]
[1770456289300,29.33680585,85.639,85.59,4.91468443]
[1770456291396,29.33680585,85.639,85.6,4.91468443]
[1770456292407,29.33680585,85.639,85.601,27.08261071]
[1770456292595,29.33680585,85.652,85.62,4.91468443]
[1770456292996,29.33680585,85.652,85.61,31.99729514]
[1770456293903,2.03217612,85.704,85.56,97.1]
[1770456293904,29.33680585,85.649,85.6,4.91468443]
[1770456296498,29.33680585,85.649,85.61,4.91468443]
[1770456297706,29.33680585,85.649,85.62,4.91468443]
[1770456299310,29.33680585,85.649,85.61,4.91468443]
[1770456300298,29.33680585,85.649,85.6,4.91468443]
[1770456300607,29.33680585,85.629,85.58,4.91468443]
[1770456301207,29.33680585,85.629,85.6,4.91468443]
[1770456301409,29.33680585,85.629,85.59,4.91468443]
[1770456302004,29.33680585,85.629,85.581,27.08261071]
[1770456302204,29.33680585,85.629,85.59,4.91468443]
[1770456306102,28.22181592,85.609,85.553,26.98319268]
[1770456306303,28.22181592,85.609,85.57,4.91468443]
[1770456306609,28.22181592,85.609,85.58,4.91468443]
[1770456307509,4.91468443,85.63,85.58,4.91468443]
[1770456307708,28.22181592,85.629,85.59,4.91468443]
[1770456308212,28.22181592,85.629,85.6,4.91468443]
[1770456310111,28.22181592,85.629,85.584,10.5219]
[1770456310303,28.22181592,85.629,85.6,4.91468443]
[1770456310810,28.22181592,85.629,85.59,4.91468443]
[1770456312111,28.22181592,85.629,85.582,26.98319268]
[1770456312811,28.22181592,85.629,85.59,4.91468443]
[1770456313111,28.22181592,85.629,85.6,4.91468443]
[1770456317315,28.68394215,85.669,85.62,4.91468443]
[1770456317610,28.68394215,85.669,85.61,4.91468443]
[1770456317816,28.68394215,85.669,85.601,28.62565111]
[1770456317817,28.68394215,85.638,85.59,4.91468443]
[1770456318016,28.68394215,85.638,85.59,33.54033554]
[1770456318211,28.68394215,85.638,85.61,4.91468443]
[1770456319210,14.51813674,85.703,85.601,28.62565111]
[1770456319211,28.68394215,85.659,85.62,4.91468443]
[1770456319917,28.68394215,85.659,85.612,10.5185]
[1770456320316,28.68394215,85.658,85.61,4.91468443]
[1770456320512,28.68394215,85.658,85.601,28.62565111]
[1770456320717,28.68394215,85.639,85.591,28.62565111]
[1770456321513,39.20044215,85.629,85.58,4.91468443]
[1770456321819,28.68394215,85.628,85.58,4.91468443]
[1770456325115,28.68394215,85.628,85.581,28.62565111]
[1770456325322,28.68394215,85.628,85.59,4.91468443]
[1770456327821,39.20064215,85.628,85.581,28.62565111]
[1770456328116,28.68394215,85.627,85.58,4.91468443]
[1770456329719,10.517,85.626,85.58,4.91468443]
[1770456329924,28.68394215,85.625,85.58,4.91468443]
[1770456330625,28.68394215,85.625,85.575,10.523]
[1770456330821,28.68394215,85.625,85.59,4.91468443]
[1770456331127,28.68394215,85.625,85.6,4.91468443]
[1770456332925,28.68394215,85.625,85.59,4.91468443]
[1770456334427,28.68394215,85.625,85.58,4.91468443]